fUSD/lending_fUSD_20251215
["ID","MTS","AMOUNT","RATE_DAILY","PERIOD"]
[398502227,1765758882737,-7903.55598404,0.00016644,2]
[398502228,1765758882760,-185.63145483,0.00016659,2]
[398502229,1765758882787,-630.94191401,0.00016659,2]
[398502230,1765758882811,-500.0,0.00016659,2]
[398502231,1765758882837,-500.0,0.00016659,2]
[398502232,1765758882859,-503.61478414,0.00016659,2]
[398502233,1765758882881,-4147.30968642,0.0001666,2]
[398502234,1765758882905,-171.09313776,0.00016662,2]
[398502235,1765758882928,-500.0,0.00016699,2]
[398502236,1765758882951,-150.0,0.00016699,2]
[398502237,1765758882971,-500.0,0.00016699,2]
[398502238,1765758882999,-150.0,0.00016699,2]
[398502239,1765758883020,-150.0,0.00016699,2]
[398502240,1765758883042,-500.0,0.00016699,2]
[398502241,1765758883067,-500.0,0.00016699,2]
[398502242,1765758883091,-150.0,0.00016699,2]
[398502243,1765758883113,-150.0,0.00016699,2]
[398502244,1765758883144,-7903.55598404,0.00016708,2]
[398502245,1765758883167,-500.0,0.00016726,2]
[398502246,1765758883188,-150.0,0.00016726,2]
[398502247,1765758883211,-500.0,0.00016726,2]
[398502248,1765758883232,-1620.0,0.00016726,2]
[398502249,1765758883253,-150.0,0.00016726,2]
[398502250,1765758883275,-500.0,0.00016726,2]
[398502251,1765758883296,-500.0,0.00016726,2]
[398502252,1765758883317,-150.0,0.00016726,2]
[398502253,1765758883339,-150.0,0.00016726,2]
[398502254,1765758883363,-166.66,0.00016741,2]
[398502255,1765758883386,-1837.207,0.00016766,2]
[398502256,1765758883408,-172.589,0.00016766,2]
[398502257,1765758883433,-7903.55598404,0.00016772,2]
[398502258,1765758883457,-787.0,0.00016783,2]
[398502259,1765758883479,-500.0,0.00016836,2]
[398502260,1765758883501,-150.0,0.00016836,2]
[398502261,1765758883523,-470.89313889,0.00016836,2]
[398502262,1765758883547,-500.0,0.00016836,2]
[398502263,1765758883569,-500.0,0.00016836,2]
[398502264,1765758883591,-202.69287898,0.00016836,2]
[398502265,1765758883613,-7903.55598404,0.00016836,2]
[398502266,1765758883635,-500.0,0.00016863,2]
[398502267,1765758883656,-500.0,0.00016863,2]
[398502268,1765758883678,-150.0,0.00016863,2]
[398502269,1765758883700,-1620.0,0.00016863,2]
[398502270,1765758883725,-150.0,0.00016863,2]
[398502271,1765758883747,-500.0,0.00016863,2]
[398502272,1765758883769,-500.0,0.00016863,2]
[398502273,1765758883793,-150.0,0.00016863,2]
[398502274,1765758883817,-150.0,0.00016863,2]
[398502275,1765758883839,-200.0,0.00016864,2]
[398502276,1765758883865,-539.0,0.00016888,2]
[398502277,1765758883891,-7903.55598404,0.000169,2]
[398502278,1765758883913,-171.09313776,0.000169,2]
[398502279,1765758883934,-150.85899699,0.00016905,2]
[398502280,1765758883956,-481.15230225,0.0001692,2]
[398502281,1765758883977,-207.73268152,0.00016961,2]
[398502282,1765758884363,-787.0,0.00016963,2]
[398502283,1765758884386,-500.0,0.00016973,2]
[398502284,1765758884407,-500.0,0.00016973,2]
[398502285,1765758884428,-501.42980184,0.00016973,2]
[398502286,1765758884449,-500.0,0.00016973,2]
[398502287,1765758884470,-500.0,0.00016973,2]
[398502288,1765758884492,-500.0,0.00016973,2]
[398502289,1765758884513,-500.0,0.00016973,2]
[398502290,1765758884534,-500.0,0.00016973,2]
[398502292,1765758884556,-500.0,0.00016973,2]
[398502294,1765758884578,-500.0,0.00016973,2]
[398502295,1765758884599,-500.0,0.00016973,2]
[398502296,1765758884620,-150.0,0.00016973,2]
[398502297,1765758884643,-787.0,0.00016986,2]
[398502298,1765758884664,-500.0,0.00016986,2]
[398502299,1765758884684,-500.0,0.0001699,2]
[398502300,1765758884706,-179.33499305,0.0001699,2]
[398502301,1765758884732,-200.0,0.0001699,2]
[398502302,1765758884756,-151.0,0.0001699,2]
[398502303,1765758884777,-151.0,0.0001699,2]
[398502304,1765758884802,-151.0,0.0001699,2]
[398502305,1765758884822,-620.0,0.0001699,2]
[398502306,1765758884843,-151.0,0.0001699,2]
[398502307,1765758884866,-151.0,0.0001699,2]
[398502308,1765758884888,-151.0,0.0001699,2]
[398502309,1765758884914,-151.0,0.0001699,2]
[398502310,1765758884937,-151.0,0.0001699,2]
[398502311,1765758884958,-151.0,0.0001699,2]
[398502312,1765758884979,-151.0,0.0001699,2]
[398502313,1765758885000,-300.0,0.0001699,2]
[398502314,1765758885023,-500.0,0.0001699,2]
[398502315,1765758885044,-500.0,0.0001699,2]
[398502316,1765758885066,-500.0,0.0001699,2]
[398502317,1765758885087,-500.0,0.0001699,2]
[398502318,1765758885108,-500.0,0.0001699,2]
[398502319,1765758885132,-1111.0,0.0001699,2]
[398502320,1765758885153,-500.0,0.0001699,2]
[398502321,1765758885175,-500.0,0.0001699,2]
[398502322,1765758885196,-500.0,0.0001699,2]
[398502323,1765758885217,-500.0,0.0001699,2]
[398502324,1765758885238,-500.0,0.0001699,2]
[398502325,1765758885260,-500.0,0.0001699,2]
[398502326,1765758885282,-151.0,0.0001699,2]
[398502327,1765758885303,-151.0,0.0001699,2]
[398502328,1765758885324,-200.0,0.0001699,2]
[398502329,1765758885346,-151.0,0.0001699,2]
[398502330,1765758885367,-167.28365329,0.0001699,2]
[398502331,1765758885389,-574.12855637,0.0001699,2]
[398502332,1765758885411,-500.0,0.0001699,2]
[398502333,1765758885433,-500.0,0.0001699,2]
[398502334,1765758885455,-227.0973951,0.0001699,2]
[398502335,1765758885477,-1000.0,0.0001699,2]
[398502336,1765758885499,-1000.0,0.0001699,2]
[398502337,1765758885521,-1000.0,0.0001699,2]
[398502338,1765758885542,-1000.0,0.0001699,2]
[398502339,1765758885563,-1000.0,0.0001699,2]
[398502340,1765758885585,-1000.0,0.0001699,2]
[398502341,1765758885606,-1000.0,0.0001699,2]
[398502342,1765758885627,-1000.0,0.0001699,2]
[398502343,1765758885649,-1000.0,0.0001699,2]
[398502344,1765758885670,-190.37459015,0.0001699,2]
[398502345,1765758885691,-151.0,0.00016997,2]
[398502346,1765758885714,-442.1603868,0.00016998,2]
[398502347,1765758885736,-55708.81231898,0.00016998,2]
[398502481,1765759217726,7075.56,0.0001561,2]
[398502549,1765759443252,1000.0,0.00022,30]
[398502562,1765759467392,1279.04,0.00015497,2]
[398502586,1765759504191,500.0,0.0001572,2]
[398502595,1765759528725,150.0,0.00015288,2]
[398502596,1765759528839,150.0,0.00015288,2]
[398502598,1765759535806,150.0,0.00015288,2]
[398502599,1765759535873,150.0,0.00015288,2]
[398502600,1765759536139,150.0,0.00015288,2]
[398502601,1765759542888,150.0,0.00015288,2]
[398502654,1765759658307,1015.56,0.00015477,2]
[398502655,1765759673273,207.0,9.989e-05,2]
[398502656,1765759673596,207.0,9.989e-05,2]
[398502658,1765759673933,207.0,9.989e-05,2]
[398502659,1765759674243,207.0,9.989e-05,2]
[398502660,1765759675186,207.0,9.989e-05,2]
[398502661,1765759675259,207.0,9.989e-05,2]
[398502703,1765759795891,300.0,0.00015487,2]
[398502717,1765759831970,-150.0,0.00015854,2]
[398502718,1765759831979,-150.0,0.00015854,2]
[398502719,1765759831989,-282.0,0.00015854,2]
[398502720,1765759831999,-1200.0,0.00015869,2]
[398502721,1765759832009,-1200.0,0.00015869,2]
[398502722,1765759832019,-300.0,0.00015869,2]
[398502723,1765759832029,-225.10652302,0.00015869,2]
[398502724,1765759832041,-74.89347698,0.00015869,2]
[398502725,1765759832050,-150.62,0.0001587,2]
[398502726,1765759832060,-150.14,0.0001587,2]
[398502727,1765759832070,-152.38,0.0001587,2]
[398502728,1765759832080,-152.77,0.0001587,2]
[398502729,1765759832090,-150.84,0.0001587,2]
[398502730,1765759832099,-53.63442726,0.0001587,2]
[398502731,1765759832111,-96.50557274,0.0001587,2]
[398502732,1765759832122,-151.57,0.0001587,2]
[398502733,1765759832131,-150.87,0.0001587,2]
[398502734,1765759832140,-152.47,0.0001587,2]
[398502735,1765759832150,-151.67,0.0001587,2]
[398502736,1765759832159,-63.7147974,0.0001601,2]
[398502737,1765759832170,-246.30981938,0.0001601,2]
[398502738,1765759832180,-92.1098293,0.00016109,2]
[398502739,1765759832199,-457.8901707,0.00016109,2]
[398502740,1765759832208,-500.0,0.0001611,2]
[398502741,1765759832217,-500.0,0.0001611,2]
[398502742,1765759832226,-500.0,0.0001611,2]
[398502743,1765759832236,-500.0,0.0001611,2]
[398502745,1765759832246,-169.53152199,0.0001611,2]
[398502746,1765759832255,-500.0,0.0001611,2]
[398502747,1765759832265,-500.0,0.0001611,2]
[398502748,1765759832275,-500.0,0.0001611,2]
[398502749,1765759832284,-382.07221643,0.0001611,2]
[398502750,1765759832294,-500.0,0.0001611,2]
[398502751,1765759832303,-500.0,0.0001611,2]
[398502752,1765759832312,-500.0,0.0001611,2]
[398502753,1765759832322,-458.6546139,0.0001611,2]
[398502754,1765759832331,-500.0,0.0001611,2]
[398502755,1765759832340,-500.0,0.0001611,2]
[398502756,1765759832350,-502.97441919,0.0001611,2]
[398502757,1765759832359,-500.0,0.0001611,2]
[398502758,1765759832368,-500.0,0.0001611,2]
[398502759,1765759832378,-500.0,0.0001611,2]
[398502760,1765759832387,-609.67599965,0.00016148,2]
[398502761,1765759832396,-500.0,0.00016148,2]
[398502762,1765759832405,-500.0,0.00016148,2]
[398502763,1765759832414,-310.02461676,0.00016148,2]
[398502764,1765759832423,-578.20924308,0.00016149,2]
[398502765,1765759832432,-200.0,0.00016149,2]
[398502766,1765759832441,-207.4,0.00016149,2]
[398502767,1765759832450,-215.0738,0.00016149,2]
[398502768,1765759832459,-223.0315306,0.00016149,2]
[398502769,1765759832468,-231.28369723,0.00016149,2]
[398502770,1765759832478,-239.84119403,0.00016149,2]
[398502771,1765759832486,-248.71531821,0.00016149,2]
[398502772,1765759832496,-296.71573678,0.00016149,2]
[398502773,1765759832504,-312.51145641,0.00016169,2]
[398502774,1765759832513,-151.0,0.00016169,2]
[398502775,1765759832523,-693.3919763,0.00016169,2]
[398502776,1765759832532,-154.58891415,0.00016169,2]
[398502777,1765759832541,-1212.4769749,0.00016169,2]
[398502778,1765759832550,-300.0,0.00016169,2]
[398502779,1765759832559,-500.0,0.00016169,2]
[398502780,1765759832568,-1606.10900419,0.00016171,2]
[398502781,1765759832577,-25642.6,0.00016179,2]
[398502782,1765759832586,-310.02461676,0.00016287,2]
[398502783,1765759832595,-999.0,0.00016308,3]
[398502784,1765759832604,-308.77,0.00016413,2]
[398502785,1765759832614,-150.0,0.0001642,2]
[398502786,1765759832623,-150.0,0.0001642,2]
[398502787,1765759832632,-4972.92140414,0.00016425,2]
[398502788,1765759832642,-310.02461676,0.00016425,2]
[398502789,1765759832652,-150.82,0.00016432,2]
[398502790,1765759832661,-225.64,0.00016438,2]
[398502791,1765759832670,-800.0,0.00016438,2]
[398502792,1765759832679,-500.0,0.00016443,2]
[398502793,1765759832689,-218.0,0.00016445,2]
[398502794,1765759832698,-4972.92140408,0.00016478,2]
[398502795,1765759832707,-236.99,0.00016489,2]
[398502796,1765759832715,-500.0,0.00016496,2]
[398502797,1765759832724,-195.38320398,0.00016496,2]
[398502798,1765759832733,-500.0,0.00016496,2]
[398502799,1765759832742,-500.0,0.00016496,2]
[398502800,1765759832751,-615.26767221,0.00016496,2]
[398502801,1765759832761,-500.0,0.00016496,2]
[398502807,1765759832770,-500.0,0.00016496,2]
[398502812,1765759833214,-500.0,0.00016496,2]
[398502814,1765759833223,-500.0,0.00016496,2]
[398502816,1765759833232,-167.06830935,0.00016496,2]
[398502818,1765759833243,-500.0,0.00016496,2]
[398502820,1765759833252,-264.1886854,0.00016496,2]
[398502822,1765759833261,-500.0,0.00016496,2]
[398502824,1765759833272,-500.0,0.00016496,2]
[398502826,1765759833281,-500.0,0.00016496,2]
[398502828,1765759833290,-500.0,0.00016496,2]
[398502830,1765759833299,-500.0,0.00016496,2]
[398502832,1765759833309,-500.0,0.00016496,2]
[398502834,1765759833318,-500.0,0.00016496,2]
[398502836,1765759833327,-500.0,0.00016496,2]
[398502838,1765759833337,-567.87940298,0.00016496,2]
[398502840,1765759833346,-500.0,0.00016496,2]
[398502842,1765759833355,-500.0,0.00016496,2]
[398502844,1765759833365,-500.0,0.00016496,2]
[398502845,1765759833374,-500.0,0.00016496,2]
[398502846,1765759833383,-500.0,0.00016496,2]
[398502847,1765759833392,-500.0,0.00016496,2]
[398502848,1765759833401,-500.0,0.00016496,2]
[398502849,1765759833411,-500.0,0.00016496,2]
[398502850,1765759833421,-500.0,0.00016496,2]
[398502851,1765759833430,-995.18007994,0.00016496,2]
[398502852,1765759833442,-29.58992006,0.00016496,2]
[398502853,1765759833451,-235.7314,0.00016497,2]
[398502854,1765759833460,-281.4042,0.00016497,2]
[398502855,1765759833470,-3192.7083,0.00016497,2]
[398502856,1765759833479,-15807.3117,0.00016497,2]
[398502857,1765759833488,-2774.34525564,0.00016508,2]
[398502858,1765759833497,-1296.0,0.00016515,2]
[398502859,1765759833506,-240.8402465,0.00016524,2]
[398502860,1765759833515,-500.0,0.00016524,2]
[398502861,1765759833524,-403.52713698,0.00016524,2]
[398502862,1765759833534,-500.0,0.00016524,2]
[398502863,1765759833543,-478.39204928,0.00016524,2]
[398502864,1765759833556,-881.80377519,0.00016525,2]
[398502865,1765759833565,-200.0,0.00016525,2]
[398502866,1765759833574,-151.0,0.00016525,2]
[398502867,1765759833583,-1000.0,0.00016525,2]
[398502868,1765759833592,-151.0,0.00016525,2]
[398502869,1765759833601,-1000.0,0.00016525,2]
[398502870,1765759833611,-151.0,0.00016525,2]
[398502871,1765759833621,-1000.0,0.00016525,2]
[398502872,1765759833630,-500.0,0.00016525,2]
[398502873,1765759833640,-151.0,0.00016525,2]
[398502874,1765759833649,-151.0,0.00016525,2]
[398502875,1765759833658,-1000.0,0.00016525,2]
[398502876,1765759833667,-151.0,0.00016525,2]
[398502877,1765759833677,-1000.0,0.00016525,2]
[398502878,1765759833686,-151.0,0.00016525,2]
[398502879,1765759833695,-1000.0,0.00016525,2]
[398502880,1765759833705,-151.0,0.00016525,2]
[398502881,1765759833714,-1000.0,0.00016525,2]
[398502882,1765759833724,-574.12855637,0.00016525,2]
[398502883,1765759833734,-151.0,0.00016525,2]
[398502884,1765759833744,-200.0,0.00016525,2]
[398502885,1765759833753,-916.64238035,0.00016525,2]
[398502886,1765759833765,-83.35761965,0.00016525,2]
[398502887,1765759833775,-151.0,0.00016525,2]
[398502888,1765759833784,-1000.0,0.00016525,2]
[398502889,1765759833794,-151.0,0.00016525,2]
[398502890,1765759833803,-1000.0,0.00016525,2]
[398502891,1765759833813,-1000.0,0.00016525,2]
[398502892,1765759833822,-151.0,0.00016525,2]
[398502893,1765759833832,-1000.0,0.00016525,2]
[398502894,1765759833842,-1000.0,0.00016525,2]
[398502895,1765759833851,-1000.0,0.00016525,2]
[398502896,1765759833861,-500.0,0.00016525,2]
[398502897,1765759833871,-1000.0,0.00016525,2]
[398502898,1765759833881,-500.0,0.00016525,2]
[398502899,1765759833892,-249.14934491,0.00016525,2]
[398502900,1765759833902,-500.0,0.00016525,2]
[398502901,1765759833912,-500.0,0.00016525,2]
[398502902,1765759833922,-500.0,0.00016525,2]
[398502903,1765759833932,-500.0,0.00016525,2]
[398502904,1765759833942,-500.0,0.00016525,2]
[398502905,1765759833953,-500.0,0.00016525,2]
[398502906,1765759833963,-500.0,0.00016525,2]
[398502907,1765759833973,-500.0,0.00016525,2]
[398502908,1765759833984,-500.0,0.00016525,2]
[398502909,1765759833994,-500.0,0.00016525,2]
[398502910,1765759834004,-500.0,0.00016525,2]
[398502911,1765759834014,-1000.0,0.00016525,2]
[398502912,1765759834024,-500.0,0.00016525,2]
[398502913,1765759834035,-151.0,0.00016525,2]
[398502914,1765759834046,-500.0,0.00016525,2]
[398502915,1765759834057,-1000.0,0.00016525,2]
[398502916,1765759834067,-500.0,0.00016525,2]
[398502917,1765759834076,-1000.0,0.00016525,2]
[398502918,1765759834087,-500.0,0.00016525,2]
[398502919,1765759834096,-500.0,0.00016525,2]
[398502920,1765759834109,-1000.0,0.00016525,2]
[398502921,1765759834119,-500.0,0.00016525,2]
[398502922,1765759834129,-1000.0,0.00016525,2]
[398502923,1765759834138,-500.0,0.00016525,2]
[398502924,1765759834147,-1000.0,0.00016525,2]
[398502925,1765759834156,-500.0,0.00016525,2]
[398502926,1765759834165,-1000.0,0.00016525,2]
[398502927,1765759834175,-636.50815894,0.00016525,2]
[398502928,1765759834184,-1000.0,0.00016525,2]
[398502929,1765759834194,-500.0,0.00016525,2]
[398502930,1765759834206,-151.0,0.00016525,2]
[398502931,1765759834216,-200.0,0.00016525,2]
[398502932,1765759834225,-1000.0,0.00016525,2]
[398502933,1765759834234,-437.82588692,0.00016525,2]
[398502934,1765759834245,-151.0,0.00016525,2]
[398502935,1765759834254,-1000.0,0.00016525,2]
[398502936,1765759834263,-151.0,0.00016525,2]
[398502937,1765759834275,-1000.0,0.00016525,2]
[398502938,1765759834284,-151.0,0.00016525,2]
[398502939,1765759834293,-250.0,0.00016525,2]
[398502940,1765759834303,-151.0,0.00016525,2]
[398502941,1765759834312,-250.0,0.00016525,2]
[398502942,1765759834321,-151.0,0.00016525,2]
[398502943,1765759834331,-250.0,0.00016525,2]
[398502944,1765759834340,-151.0,0.00016525,2]
[398502945,1765759834349,-250.0,0.00016525,2]
[398502946,1765759834358,-151.0,0.00016525,2]
[398502947,1765759834368,-250.0,0.00016525,2]
[398502948,1765759834378,-151.0,0.00016525,2]
[398502949,1765759834387,-250.0,0.00016525,2]
[398502950,1765759834396,-151.0,0.00016525,2]
[398502951,1765759834406,-250.0,0.00016525,2]
[398502952,1765759834414,-1000.0,0.00016525,2]
[398502953,1765759834424,-151.0,0.00016525,2]
[398502954,1765759834433,-256.53152749,0.00016525,2]
[398502955,1765759834443,-1000.0,0.00016525,2]
[398502956,1765759834453,-151.0,0.00016525,2]
[398502957,1765759834463,-1000.0,0.00016525,2]
[398502958,1765759834472,-151.0,0.00016525,2]
[398502959,1765759834480,-1000.0,0.00016525,2]
[398502960,1765759834491,-151.0,0.00016525,2]
[398502961,1765759834500,-1000.0,0.00016525,2]
[398502962,1765759834511,-151.0,0.00016525,2]
[398502963,1765759834521,-1000.0,0.00016525,2]
[398502964,1765759834530,-151.0,0.00016525,2]
[398502965,1765759834540,-1000.0,0.00016525,2]
[398502966,1765759834549,-151.0,0.00016525,2]
[398502967,1765759834561,-896.58226142,0.00016525,2]
[398502968,1765759834570,-151.0,0.00016525,2]
[398502969,1765759834581,-151.0,0.00016525,2]
[398502970,1765759834592,-151.0,0.00016525,2]
[398502971,1765759834602,-500.0,0.00016525,2]
[398502972,1765759834613,-500.0,0.00016525,2]
[398502973,1765759834623,-500.0,0.00016525,2]
[398502974,1765759834632,-500.0,0.00016525,2]
[398502975,1765759834642,-500.0,0.00016525,2]
[398502976,1765759834653,-500.0,0.00016525,2]
[398502977,1765759834662,-500.0,0.00016525,2]
[398502978,1765759834672,-500.0,0.00016525,2]
[398502979,1765759834684,-151.0,0.00016525,2]
[398502980,1765759834694,-500.0,0.00016525,2]
[398502981,1765759834705,-500.0,0.00016525,2]
[398502982,1765759834715,-500.0,0.00016525,2]
[398502983,1765759834724,-500.0,0.00016525,2]
[398502984,1765759834736,-500.0,0.00016525,2]
[398502985,1765759834746,-500.0,0.00016525,2]
[398502986,1765759834758,-500.0,0.00016525,2]
[398502987,1765759834768,-500.0,0.00016525,2]
[398502988,1765759834778,-500.0,0.00016525,2]
[398502989,1765759834788,-500.0,0.00016525,2]
[398502990,1765759834798,-500.0,0.00016525,2]
[398502991,1765759834808,-500.0,0.00016525,2]
[398502992,1765759834817,-500.0,0.00016525,2]
[398502993,1765759834827,-500.0,0.00016525,2]
[398502994,1765759834836,-500.0,0.00016525,2]
[398502995,1765759834845,-291.07382492,0.00016525,2]
[398502996,1765759834858,-208.92617508,0.00016525,2]
[398502997,1765759834868,-500.0,0.00016525,2]
[398502998,1765759834877,-500.0,0.00016525,2]
[398502999,1765759834887,-500.0,0.00016525,2]
[398503000,1765759834896,-500.0,0.00016525,2]
[398503001,1765759834906,-620.0,0.00016525,2]
[398503002,1765759834915,-362.62811295,0.00016525,2]
[398503003,1765759834924,-250.0,0.00016525,2]
[398503004,1765759834933,-250.0,0.00016525,2]
[398503005,1765759834943,-250.0,0.00016525,2]
[398503006,1765759834952,-250.0,0.00016525,2]
[398503007,1765759834961,-250.0,0.00016525,2]
[398503008,1765759834971,-250.0,0.00016525,2]
[398503009,1765759834982,-4972.92140408,0.00016531,2]
[398503010,1765759834992,-1134.15970409,0.00016539,2]
[398503011,1765759835002,-2774.3452556,0.00016552,2]
[398503012,1765759835011,-4972.92140408,0.00016583,2]
[398503013,1765759835020,-2774.3452556,0.00016595,2]
[398503014,1765759835030,-150.0,0.000166,2]
[398503015,1765759835039,-553.22,0.000166,2]
[398503016,1765759835048,-500.0,0.00016607,2]
[398503017,1765759835058,-500.0,0.00016607,2]
[398503018,1765759835068,-500.0,0.00016607,2]
[398503019,1765759835081,-500.0,0.00016607,2]
[398503020,1765759835091,-500.0,0.00016607,2]
[398503021,1765759835100,-500.0,0.00016607,2]
[398503022,1765759835109,-500.0,0.00016607,2]
[398503023,1765759835118,-500.0,0.00016607,2]
[398503024,1765759835127,-308.58122602,0.00016607,2]
[398503025,1765759836478,-200.33439148,0.00016607,2]
[398503026,1765759836487,-500.0,0.00016607,2]
[398503027,1765759836495,-500.0,0.00016607,2]
[398503028,1765759836504,-568.58435032,0.00016607,2]
[398503029,1765759836513,-500.0,0.00016607,2]
[398503030,1765759836522,-500.0,0.00016607,2]
[398503031,1765759836531,-500.0,0.00016607,2]
[398503032,1765759836540,-500.0,0.00016607,2]
[398503033,1765759836549,-411.39077685,0.00016607,2]
[398503034,1765759836564,-88.60922315,0.00016607,2]
[398503035,1765759836573,-500.0,0.00016607,2]
[398503036,1765759836582,-500.0,0.00016607,2]
[398503037,1765759836590,-500.0,0.00016607,2]
[398503038,1765759836599,-500.0,0.00016607,2]
[398503039,1765759836608,-500.0,0.00016607,2]
[398503040,1765759836617,-497.19392299,0.00016607,2]
[398503041,1765759836626,-502.41193472,0.00016607,2]
[398503042,1765759836635,-3208.29177805,0.00016608,2]
[398503043,1765759836654,-797.2953444,0.00016608,2]
[398503044,1765759836664,-1927.67794371,0.00016608,2]
[398503045,1765759836675,-1302.0,0.00016608,2]
[398503048,1765759838067,-10869.68645824,0.00016608,2]
[398503049,1765759838078,-563.94852852,0.00016608,2]
[398503050,1765759838089,-11774.6051068,0.00016608,2]
[398503126,1765759840889,-729556.49484028,0.00016608,2]
[398503127,1765759840899,-499.4,0.00016608,2]
[398503128,1765759840908,-500.0,0.00016636,2]
[398503129,1765759840918,-4972.92140408,0.00016636,2]
[398503130,1765759840927,-2774.3452556,0.00016639,2]
[398503131,1765759840936,-151.0,0.00016644,2]
[398503132,1765759840945,-500.0,0.00016646,2]
[398503133,1765759840955,-222.87994675,0.00016646,2]
[398503134,1765759840965,-68797.69916459,0.00016647,2]
[398503135,1765759840974,-652.0,0.00016651,2]
[398503136,1765759840984,-4365.28943532,0.0001666,2]
[398503137,1765759840995,-2774.3452556,0.00016682,2]
[398503138,1765759841005,-4972.92140408,0.00016689,2]
[398503139,1765759841016,-150.0,0.00016699,2]
[398503140,1765759841025,-500.0,0.00016699,2]
[398503141,1765759841035,-150.0,0.00016699,2]
[398503142,1765759841044,-150.0,0.00016699,2]
[398503143,1765759841053,-152.84303345,0.00016699,2]
[398503144,1765759841062,-500.0,0.00016699,2]
[398503145,1765759841071,-500.0,0.00016699,2]
[398503146,1765759841080,-500.0,0.00016699,2]
[398503147,1765759841089,-150.0,0.00016699,2]
[398503148,1765759841098,-186.43349316,0.00016699,2]
[398503149,1765759841107,-500.0,0.00016699,2]
[398503150,1765759841116,-157.26006085,0.00016699,2]
[398503151,1765759841126,-150.0,0.00016699,2]
[398503152,1765759841135,-500.0,0.00016699,2]
[398503153,1765759841143,-150.0,0.00016699,2]
[398503154,1765759841153,-150.50253545,0.00016699,2]
[398503155,1765759841162,-150.0,0.00016699,2]
[398503156,1765759841171,-150.0,0.00016699,2]
[398503157,1765759841179,-150.0,0.00016699,2]
[398503158,1765759841188,-500.0,0.00016699,2]
[398503159,1765759841199,-201.55115124,0.00016699,2]
[398503160,1765759841210,-500.0,0.00016699,2]
[398503161,1765759841219,-1485.0,0.00016699,2]
[398503162,1765759841228,-500.0,0.00016699,2]
[398503163,1765759841238,-500.0,0.00016699,2]
[398503164,1765759841247,-150.0,0.00016699,2]
[398503165,1765759841256,-150.0,0.00016699,2]
[398503166,1765759841266,-500.0,0.00016699,2]
[398503167,1765759841278,-500.0,0.00016699,2]
[398503168,1765759841287,-150.0,0.00016699,2]
[398503169,1765759841296,-150.0,0.00016699,2]
[398503170,1765759841305,-500.0,0.00016699,2]
[398503171,1765759841315,-150.0,0.00016699,2]
[398503172,1765759841325,-150.0,0.00016699,2]
[398503173,1765759841334,-150.0,0.00016699,2]
[398503174,1765759841343,-784.4956798,0.000167,2]
[398503175,1765759841353,-1000.0,0.000167,2]
[398503176,1765759841362,-3051.55541889,0.00016716,2]
[398503177,1765759841372,-156.51316244,0.00016717,2]
[398503178,1765759841381,-793.30049638,0.00016717,2]
[398503179,1765759841390,-299.9620005,0.00016717,2]
[398503180,1765759841400,-2774.3452556,0.00016726,2]
[398503181,1765759841409,-150.0,0.00016726,2]
[398503182,1765759841418,-150.0,0.00016726,2]